[Event "NOR-ch Women 2019"]
[Site "Bekkestua"]
[Date "2019.03.16"]
[Round "2.2"]
[White "Ayzenberg, Alena"]
[Black "Hina, Ariza"]
[Result "1-0"]
[ECO "E09"]
[WhiteElo "1908"]
[BlackElo "1594"]
[Annotator "NA RC"]
[PlyCount "101"]
[EventDate "2019.03.15"]
[EventType "swiss"]
[EventCountry "NOR"]
[SourceTitle "playchess.com"]
[Source "ChessBase"]
[SourceQuality "1"]
[TimeControl "5400+30"]

{[%evp 11,87,22,32767,32767,32767,22,77,89,111,55,135,107,123,114,118,95,107,96,32767,111,89,91,131,100,139,131,32767,137,32767,32767,121,62,90,87,95,59,32767,32767,32767,93,171,146,238,158,254,266,254,273,269,32767,32767,32767,32767,32767,32767,32767,32767,32767,32767,32767,32767,32767,29987,668,608,418,32767,477,32767,32767,32767,32767,720,760,810,971,32767,1208]} 1. d4 {[%emt 0:00:33]} d5 {[%emt 0:00:34]} 2. c4 {[%emt 0:00:35]} e6 {[%emt 0:00:36]} 3. Nf3 {[%emt 0:00:39]} Nf6 {[%emt 0:00:37]} 4. g3 {[%emt 0:00:49]} Nbd7 {[%emt 0:01:01]} 5. Bg2 {[%emt 0:01:37]} c6 {[%emt 0:00:58]} 6. Nbd2 {[%emt 0:02:49]} Be7 {[%emt 0:03:51]} 7. O-O {[%emt 0:00:45]} O-O {[%emt 0:00:39]} 8. Qc2 {[%emt 0:03:06]} dxc4 {[%emt 0:04:30] E09: Closed Catalan: Main Line: 7 Qc2 c6 8 Nbd2} (8... b6 $11 9. e4 Ba6 10. e5 Ne8 11. Re1 Rc8 12. cxd5 cxd5 13. Qd1 Qc7 14. Nb1 Qc2 15. Nc3 Qxd1 16. Rxd1 Nc7 17. h4 Nb5 {½-½ (69) Yu,Y (2751)-Le,Q (2737) Huaian 2017}) 9. Nxc4 {[%emt 0:01:10]} Re8 {[%emt 0:07:23]} 10. e4 {[%emt 0:02:24]} (10. Bd2 $16) 10... Nf8 $146 {[%emt 0:02:18]} ({Black should try} 10... b6 $14) ({Predecessor:} 10... Bf8 11. Bf4 Nb6 12. Nce5 h6 13. Rfd1 Qe7 14. Rac1 Rd8 15. h3 Bd7 16. Qe2 Be8 17. Nd3 {1-0 (80) Flick,A (2167)-Zymberi,A (2089) Ditzingen 2015}) 11. Bd2 {[%emt 0:05:16]} Ng6 {[%emt 0:06:21]} 12. Rfd1 {[%emt 0:03:45]} Qc7 {[%emt 0:04:12]} 13. Nfe5 {[%emt 0:06:16]} Nxe5 {[%emt 0:14:50]} 14. dxe5 {[%emt 0:04:39]} Nd7 {[%emt 0:03:16]} 15. Bc3 {[%emt 0:03:09]} Rd8 {[%emt 0:06:01]} 16. f4 {[%emt 0:08:33]} Nb6 {[%emt 0:07:08]} 17. Rxd8+ {[%emt 0:04:44]} Bxd8 {[%emt 0:01:40]} 18. Nd6 {[%emt 0:02:03]} Bd7 {[%emt 0:02:29]} 19. Rd1 {[%emt 0:03:49]} Be7 {[%emt 0:03:02]} 20. Ba5 {[%emt 0:06:13]} Rd8 {[%emt 0:08:41]} 21. Bb4 {[%emt 0:13:53]} Be8 {[%emt 0:05:13]} 22. Nxe8 {[%emt 0:08:36]} Rxe8 {[%emt 0:01:07]} 23. Bd6 {[%emt 0:00:53]} Bxd6 {[%emt 0:02:41]} 24. exd6 {[%emt 0:01:06]} Qd7 {[%emt 0:00:49]} 25. Qc5 {[%emt 0:03:58]} f6 {[%emt 0:06:33]} (25... e5 $16) 26. Bh3 {[%emt 0:01:30]} Nc8 {[%emt 0:01:09]} (26... Qf7 $142 27. Rd2 Ra8) 27. e5 {[%emt 0:02:24]} f5 {[%emt 0:00:51]} (27... Nb6 $142 28. Re1 Kh8) 28. a4 {[%emt 0:01:18]} Rd8 {[%emt 0:01:36]} 29. Bg2 {[%emt 0:01:06]} Qf7 {[%emt 0:00:55]} 30. Rc1 {[%emt 0:01:15]} Rd7 {[%emt 0:01:26]} 31. b4 {[%emt 0:01:08]} a6 {[%emt 0:01:38]} 32. b5 {[%emt 0:01:20]} axb5 {[%emt 0:00:33]} 33. axb5 {[%emt 0:00:35]} Rd8 {[%emt 0:00:31]} 34. bxc6 {[%emt 0:00:44]} bxc6 {[%emt 0:00:32]} 35. Qxc6 {[%emt 0:01:05]} Qa7+ {[%emt 0:00:33]} 36. Kh1 {[%emt 0:00:38]} Kf8 {[%emt 0:01:05]} 37. Qc7 {[%emt 0:00:52]} (37. Qxc8 $142 Qd7 38. Qxd7 {[%mdl 64] Overworked Piece} Rxd7 39. Rc8+ Kf7 40. Bc6 Re7 41. Rc7 Rd7 42. Bxd7) 37... Qxc7 {[%emt 0:00:32]} 38. Rxc7 {[%emt 0:00:56]} Nb6 {[%emt 0:00:42]} 39. h4 {[%emt 0:00:52]} Nd5 {[%emt 0:00:33]} 40. Bxd5 {[%emt 0:00:56]} exd5 {[%emt 0:00:32]} 41. Rc5 {[%emt 0:00:40]} d4 {[%emt 0:00:00]} 42. Rd5 {[%emt 0:00:00]} Ke8 {[%emt 0:00:00]} (42... Kf7 $142 43. Rxd4 Ke6) 43. Rxd4 {[%emt 0:00:00]} Kd7 {[%emt 0:00:00]} 44. Ra4 $18 {[%emt 0:00:00]} Ke8 {[%emt 0:00:00]} 45. Ra7 {[%emt 0:00:00]} Kf8 {[%emt 0:00:00]} 46. Kg2 {[%emt 0:00:00]} h6 {[%emt 0:00:00]} 47. Kf3 {[%emt 0:00:00]} h5 {[%emt 0:00:00]} 48. Ke3 {[%emt 0:00:00]} g6 {[%emt 0:00:00]} 49. Kd4 {[%emt 0:00:00]} Kg8 {[%emt 0:00:00]} 50. Kd5 {[%emt 0:00:00]} Kf8 {[%emt 0:00:00]} 51. e6 {[%emt 0:00:00]} 1-0

[Event "NOR-ch Women 2019"]
[Site "Bekkestua"]
[Date "2019.03.16"]
[Round "2.3"]
[White "Eiding, Amanda Mai Irgens"]
[Black "Kyrkjebo, Hanna B."]
[Result "0-1"]
[ECO "C45"]
[WhiteElo "1503"]
[BlackElo "1896"]
[Annotator "NA RC"]
[PlyCount "74"]
[EventDate "2019.03.15"]
[EventType "swiss"]
[EventCountry "NOR"]
[SourceTitle "playchess.com"]
[Source "ChessBase"]
[SourceQuality "1"]
[TimeControl "5400+30"]

{[%evp 10,72,18,4,19,0,32767,16,24,-101,-26,-94,-90,-85,-86,-95,-86,-95,-79,-82,32767,-71,32767,-48,-35,-36,-27,-37,-10,-34,32767,-49,-27,-81,-63,-81,32767,-71,-77,-89,-75,-72,-96,32767,32767,-70,-75,-85,-28,-17,-32,-37,32767,32767,32767,32767,-96,-171,-175,-718,-803,-814,-705,-743,-789]} 1. e4 {[%emt 0:00:32]} e5 {[%emt 0:00:43]} 2. Nf3 {[%emt 0:00:36]} Nc6 {[%emt 0:01:08]} 3. d4 {[%emt 0:00:46]} exd4 {[%emt 0:01:30]} 4. Nxd4 {[%emt 0:00:37]} Bc5 {[%emt 0:01:15]} 5. Be3 {[%emt 0:00:40]} Qf6 {[%emt 0:01:17]} 6. c3 {[%emt 0:00:42]} Nge7 {[%emt 0:02:34]} 7. Bc4 {[%emt 0:01:09]} Ne5 {[%emt 0:02:15]} 8. Bb3 {[%emt 0:03:24] LiveBook: 20 Games} d6 {[%emt 0:03:35] C45: Scotch Game} (8... Qa6 9. Bc2 d5 10. Nb5 Bd6 11. Nd2 O-O 12. Qe2 Bd7 13. Nxd6 Qxe2+ 14. Kxe2 cxd6 15. a4 Rfe8 16. Rhd1 {½-½ (52) Li,C (2725)-Bai,J (2594) Hangzhou 2018}) 9. h3 {[%emt 0:03:30] [#]} (9. O-O $11) 9... O-O {[%emt 0:05:34]} (9... Qg6 $1 $17 {[%cal Rg6g2]} 10. Kf1 Qxe4) 10. Qh5 $146 {[%emt 0:15:54]} (10. f4 $11) ({Predecessor:} 10. Bc2 Nc4 11. b3 Nxe3 12. fxe3 Qh4+ 13. Kf1 f5 14. exf5 Bxf5 15. Nf3 Bxc2 16. Qxc2 Nd5 17. Ke2 Qg3 18. Nbd2 Nxe3 19. Qe4 Rae8 {0-1 (19) Abrahamyan,A (1664)-Gutacker,S (1936) Frankfurt 2010}) 10... Nd3+ {[%emt 0:10:06]} 11. Kf1 {[%emt 0:07:54]} Nc6 {[%emt 0:08:43]} 12. Qf3 {[%emt 0:04:20]} Qxf3 {[%emt 0:10:38]} ({Don't play} 12... Bxd4 $6 13. cxd4 Qxf3 14. gxf3 $11) ({Much weaker is} 12... Nxb2 $6 13. Qxf6 gxf6 14. Nd2 $11) 13. gxf3 {[%emt 0:01:51]} Na5 {[%emt 0:09:27]} 14. Nd2 {[%emt 0:10:34]} Nxb3 {[%emt 0:05:24]} 15. axb3 {[%emt 0:01:30]} Bd7 {[%emt 0:02:06]} 16. Ke2 {[%emt 0:02:34]} Bxd4 {[%emt 0:03:30]} ({Weaker is} 16... Nxb2 17. Rhb1 $18) 17. Kxd3 {[%emt 0:02:45]} Bxe3 {[%emt 0:01:36]} 18. fxe3 {[%emt 0:01:17]} a6 {[%emt 0:01:53]} 19. Nf1 {[%emt 0:03:50]} f5 {[%emt 0:01:47]} 20. exf5 {[%emt 0:02:54]} Bxf5+ {[%emt 0:01:37]} 21. e4 {[%emt 0:01:57]} (21. Ke2 $11) 21... Be6 {[%emt 0:01:19]} 22. Nd2 {[%emt 0:00:44]} Rf4 {[%emt 0:01:37]} 23. Ke3 {[%emt 0:04:03]} Rh4 {[%emt 0:02:26]} 24. f4 {[%emt 0:04:57]} Rxh3+ {[%emt 0:01:30]} 25. Rxh3 {[%emt 0:00:39]} Bxh3 {[%emt 0:00:32]} 26. f5 {[%emt 0:01:03]} Bg4 {[%emt 0:01:01]} 27. Rg1 {[%emt 0:05:09]} h5 {[%emt 0:01:38]} 28. Nf1 {[%emt 0:01:30] [#]} Re8 {[%emt 0:02:15]} (28... d5 $1 $17 {[%mdl 512]} 29. Kf4 (29. exd5 Bxf5) 29... dxe4) 29. Kf4 $1 {[%emt 0:01:02]} Kf7 {[%emt 0:01:51]} 30. Nh2 {[%emt 0:00:45]} Be2 {[%emt 0:01:24]} 31. Re1 {[%emt 0:02:08]} Bd3 {[%emt 0:01:38]} 32. Re3 {[%emt 0:00:56]} Bb5 {[%emt 0:01:49]} 33. Kg5 {[%emt 0:01:45]} (33. Nf3 $17) 33... Bc6 {[%emt 0:00:57]} 34. Kxh5 $2 {[%emt 0:00:50]} (34. Kf4) 34... Rh8+ {[%emt 0:00:45]} 35. Kg5 {[%emt 0:01:40]} Rxh2 {[%emt 0:00:36]} 36. e5 {[%emt 0:01:45]} dxe5 $19 {[%emt 0:00:46]} 37. Rxe5 {[%emt 0:01:25]} Rxb2 {[%emt 0:00:51]} 0-1

[Event "NOR-ch Women 2019"]
[Site "Bekkestua"]
[Date "2019.03.16"]
[Round "2.4"]
[White "Kyrkjebo, Marte B."]
[Black "Landsverk, Ida"]
[Result "1/2-1/2"]
[ECO "B12"]
[WhiteElo "1830"]
[BlackElo "1369"]
[Annotator "NA RC"]
[PlyCount "101"]
[EventDate "2019.03.15"]
[EventType "swiss"]
[EventCountry "NOR"]
[SourceTitle "playchess.com"]
[Source "ChessBase"]
[SourceQuality "1"]
[TimeControl "5400+30"]

{[%evp 9,90,10,5,3,-10,6,-4,3,8,6,3,0,0,-7,31,27,14,0,21,32767,32767,32767,5,0,0,0,32767,0,-22,-18,-7,-62,-79,-116,-126,-115,-127,32767,-176,-203,-148,-156,-155,-136,-116,-130,-72,-58,-61,-72,32767,32767,32767,-110,99,0,0,0,57,15,32767,32767,32767,32767,32767,32767,32767,32767,32767,0,32767,32767,32767,32767,32767,0,0,0,32767,0,0,0,0]} 1. e4 {[%emt 0:01:01]} c6 {[%emt 0:00:37]} 2. d4 {[%emt 0:00:35]} d5 {[%emt 0:00:36]} 3. e5 {[%emt 0:00:35]} c5 {[%emt 0:00:52]} 4. dxc5 {[%emt 0:00:53]} e6 {[%emt 0:01:02]} 5. Be3 {[%emt 0:05:15]} Nd7 {[%emt 0:00:54]} 6. Bb5 {[%emt 0:03:38] B12: Caro-Kann: Advance Variation} Ne7 {[%emt 0:01:21]} 7. c3 {[%emt 0:04:40]} a6 {[%emt 0:01:18]} 8. Bxd7+ {[%emt 0:03:03]} Bxd7 {[%emt 0:00:40]} 9. Nf3 {[%emt 0:00:51]} Nf5 {[%emt 0:01:30]} 10. Bd4 {[%emt 0:02:37]} Nxd4 {[%emt 0:02:01]} 11. Qxd4 {[%emt 0:03:58]} Rb8 $146 {[%emt 0:09:39]} ({Predecessor:} 11... Rc8 12. b4 b6 13. cxb6 Rc4 {½-½ (22) Firnhaber,I (2515)-Holroyd,K (2533) ICCF email 2015}) 12. O-O {[%emt 0:12:39]} b6 {[%emt 0:00:53]} 13. cxb6 {[%emt 0:04:02]} Qxb6 {[%emt 0:00:46]} 14. Qxb6 {[%emt 0:04:47]} Rxb6 {[%emt 0:00:37]} 15. b3 {[%emt 0:01:22]} Rc6 {[%emt 0:03:29]} 16. Nd4 {[%emt 0:02:23]} Rc7 {[%emt 0:01:39]} 17. Rc1 {[%emt 0:01:30]} Be7 {[%emt 0:05:36]} 18. Nd2 {[%emt 0:06:05]} f6 {[%emt 0:08:31]} 19. N2f3 {[%emt 0:02:33]} Kf7 {[%emt 0:01:01]} 20. Rc2 {[%emt 0:02:51]} Rhc8 {[%emt 0:01:42]} 21. Rac1 {[%emt 0:04:22]} Ba3 {[%emt 0:05:10]} 22. Re1 {[%emt 0:05:22]} Rxc3 {[%emt 0:03:07]} 23. Rce2 {[%emt 0:05:06]} Rc1 {[%emt 0:08:56]} 24. g3 {[%emt 0:03:46]} Rxe1+ {[%emt 0:04:22]} 25. Rxe1 {[%emt 0:00:46]} Bb4 {[%emt 0:08:21]} 26. Rd1 {[%emt 0:03:07]} Bc3 {[%emt 0:05:43]} 27. Kg2 {[%emt 0:04:54]} Bxd4 {[%emt 0:01:45]} ({Black should try} 27... h5 28. h4 Bb4) 28. Rxd4 {[%emt 0:00:47]} Rc2 {[%emt 0:01:05]} 29. a4 {[%emt 0:01:40]} Re2 {[%emt 0:02:53]} 30. exf6 {[%emt 0:02:23]} gxf6 {[%emt 0:00:53]} 31. Rb4 {[%emt 0:01:33]} (31. Rf4 $15) 31... Kg6 $2 {[%emt 0:12:27] [#]} (31... e5 $17 32. Rb7 Ke8) 32. Rb6 {[%emt 0:01:01]} ({White should play} 32. Rb7 $1 $16 {[%cal Rb7d7]} Be8 33. Ra7) 32... Rb2 {[%emt 0:01:02]} 33. Rxa6 {[%emt 0:01:34]} Rxb3 {[%emt 0:00:39]} (33... Kf7 $11) 34. Nd4 {[%emt 0:00:39]} Ra3 {[%emt 0:02:16]} 35. Nxe6 {[%emt 0:00:48]} Bxe6 {[%emt 0:00:49]} 36. Rxe6 {[%emt 0:00:32]} Rxa4 {[%emt 0:00:38]} 37. Rd6 {[%emt 0:01:28]} d4 {[%emt 0:00:31]} 38. Kf3 {[%emt 0:01:10]} Kf5 {[%emt 0:00:32]} 39. Rd7 {[%emt 0:00:49]} h5 {[%emt 0:00:31]} 40. Rd5+ {[%emt 0:00:48]} Kg6 {[%emt 0:01:22]} 41. Ke4 {[%emt 0:01:26]} Ra2 {[%emt 0:00:57]} 42. Rxd4 {[%emt 0:00:00]} Rxf2 {[%emt 0:00:00]} 43. h4 {[%emt 0:00:00]} Rf1 {[%emt 0:00:00]} 44. Rd5 {[%emt 0:00:00]} Rf2 $11 {[%emt 0:00:00]} 45. Ke3 {[%emt 0:00:00]} Rf1 {[%emt 0:00:00]} 46. Ke2 {[%emt 0:00:00]} Ra1 {[%emt 0:00:00]} 47. Kf3 {[%emt 0:00:00]} Ra3+ {[%emt 0:00:00]} 48. Kf4 {[%emt 0:00:00]} Ra4+ {[%emt 0:00:00]} 49. Kf3 {[%emt 0:00:00]} Ra3+ {[%emt 0:00:20]} 50. Kf4 {[%emt 0:00:00]} Ra4+ {[%emt 0:00:41]} 51. Kf3 {[%emt 0:00:56]} 1/2-1/2

[Event "NOR-ch Women 2019"]
[Site "Bekkestua"]
[Date "2019.03.16"]
[Round "2.5"]
[White "Bjorkly, Sara Marie Skaug"]
[Black "Mrachek, Svetlana"]
[Result "1-0"]
[ECO "D11"]
[WhiteElo "1368"]
[BlackElo "1628"]
[Annotator "NA RC"]
[PlyCount "74"]
[EventDate "2019.03.15"]
[EventType "swiss"]
[EventCountry "NOR"]
[SourceTitle "playchess.com"]
[Source "ChessBase"]
[SourceQuality "1"]
[TimeControl "5400+30"]

1. d4 {[%emt 0:00:37]} d5 {[%emt 0:00:34]} 2. c4 {[%emt 0:00:59]} c6 {[%emt 0:00:35]} 3. Nc3 {[%emt 0:00:40]} Bf5 {[%emt 0:01:08]} 4. cxd5 {[%emt 0:01:21]} cxd5 {[%emt 0:00:39]} 5. Nf3 {[%emt 0:11:48]} e6 {[%emt 0:08:16]} 6. e3 {[%emt 0:06:12]} a6 {[%emt 0:04:18]} 7. Ne5 {[%emt 0:05:49]} Nd7 {[%emt 0:06:29]} 8. Nf3 {[%emt 0:13:28]} Ngf6 {[%emt 0:01:51]} 9. a3 {[%emt 0:02:10]} Bd6 {[%emt 0:00:58]} 10. Bd3 {[%emt 0:01:40]} Ne4 {[%emt 0:03:40]} 11. Qc2 {[%emt 0:04:30]} Rc8 {[%emt 0:01:51]} 12. Bd2 {[%emt 0:06:54]} O-O {[%emt 0:01:22]} 13. Qb1 {[%emt 0:02:25]} Nxc3 {[%emt 0:06:11]} 14. Bxc3 {[%emt 0:03:10]} Bxd3 {[%emt 0:00:40]} 15. Qxd3 {[%emt 0:00:43]} f5 {[%emt 0:00:38]} 16. O-O {[%emt 0:02:26]} b5 {[%emt 0:09:57]} 17. Ne5 {[%emt 0:04:43]} Bxe5 {[%emt 0:05:49]} 18. dxe5 {[%emt 0:00:42]} Nc5 {[%emt 0:00:47]} 19. Qe2 {[%emt 0:02:47]} Nb3 {[%emt 0:03:29]} 20. Rad1 {[%emt 0:01:39]} Rf7 {[%emt 0:07:49]} 21. Bb4 {[%emt 0:03:15]} Rfc7 {[%emt 0:01:23]} 22. Qd3 {[%emt 0:02:23]} Nc5 {[%emt 0:01:26]} 23. Qb1 {[%emt 0:01:55]} Rc6 {[%emt 0:01:03]} 24. f3 {[%emt 0:02:25]} Qc7 {[%emt 0:02:46]} 25. Bc3 {[%emt 0:02:36]} a5 {[%emt 0:03:04]} 26. b4 {[%emt 0:02:26]} axb4 {[%emt 0:02:22]} 27. Bxb4 {[%emt 0:01:54]} Qxe5 {[%emt 0:01:36]} 28. Bxc5 {[%emt 0:02:16]} Rxc5 {[%emt 0:00:34]} 29. Rfe1 {[%emt 0:01:12]} Ra8 {[%emt 0:10:58]} 30. Rc1 {[%emt 0:04:04]} Rxc1 {[%emt 0:03:28]} 31. Qxc1 {[%emt 0:00:48]} Qd6 {[%emt 0:01:12]} 32. Qb2 {[%emt 0:02:56]} Qb6 {[%emt 0:04:51]} 33. Kf2 {[%emt 0:01:15]} Qb8 {[%emt 0:01:50]} 34. g3 {[%emt 0:00:39]} h5 {[%emt 0:01:58]} 35. f4 {[%emt 0:00:36]} Ra6 {[%emt 0:01:25]} 36. Rb1 {[%emt 0:00:40]} Rb6 {[%emt 0:00:31]} 37. Qb4 {[%emt 0:00:54]} Rc6 {[%emt 0:00:00]} 1-0

[Event "NOR-ch Women 2019"]
[Site "Bekkestua"]
[Date "2019.03.16"]
[Round "2.6"]
[White "Nordquelle, Amelia"]
[Black "Blauhut, Anna"]
[Result "0-1"]
[ECO "D37"]
[WhiteElo "1595"]
[BlackElo "1081"]
[Annotator "NA RC"]
[PlyCount "66"]
[EventDate "2019.03.15"]
[EventType "swiss"]
[EventCountry "NOR"]
[SourceTitle "playchess.com"]
[Source "ChessBase"]
[SourceQuality "1"]
[TimeControl "5400+30"]

1. d4 {[%emt 0:02:04]} d5 {[%emt 0:00:54]} 2. c4 {[%emt 0:00:48]} c6 {[%emt 0:01:41]} 3. Bf4 {[%emt 0:01:00]} Nf6 {[%emt 0:01:21]} 4. e3 {[%emt 0:00:54]} e6 {[%emt 0:00:52]} 5. Nf3 {[%emt 0:01:05]} Be7 {[%emt 0:01:40]} 6. Nc3 {[%emt 0:00:43]} Nbd7 {[%emt 0:01:12]} 7. Bd3 {[%emt 0:00:51]} b6 {[%emt 0:03:01]} 8. O-O {[%emt 0:01:00]} O-O {[%emt 0:00:42]} 9. Qc2 {[%emt 0:01:00]} Re8 {[%emt 0:02:57]} 10. e4 {[%emt 0:01:01]} dxe4 {[%emt 0:01:42]} 11. Nxe4 {[%emt 0:00:36]} c5 {[%emt 0:01:34]} 12. Nd6 {[%emt 0:01:38]} Bxd6 {[%emt 0:01:39]} 13. Bxd6 {[%emt 0:00:37]} Bb7 {[%emt 0:01:25]} 14. Ne5 {[%emt 0:01:52]} Rc8 {[%emt 0:01:58]} 15. dxc5 {[%emt 0:01:33]} bxc5 {[%emt 0:01:02]} 16. Rad1 {[%emt 0:01:06]} Nxe5 {[%emt 0:02:26]} 17. Bxe5 {[%emt 0:00:56]} Qe7 {[%emt 0:01:56]} 18. Bxf6 {[%emt 0:00:59]} Qxf6 {[%emt 0:00:39]} 19. Bxh7+ {[%emt 0:00:32]} Kf8 {[%emt 0:01:14]} 20. Rd7 {[%emt 0:00:47]} Re7 {[%emt 0:01:37]} 21. Qd3 {[%emt 0:00:52]} Rc7 {[%emt 0:06:01]} 22. Rxe7 {[%emt 0:01:02]} Kxe7 {[%emt 0:01:21]} 23. Rd1 {[%emt 0:00:56]} Kf8 {[%emt 0:02:17]} 24. Qh3 {[%emt 0:01:35]} g6 {[%emt 0:02:10]} 25. Rd6 {[%emt 0:03:01]} Qg5 {[%emt 0:01:39]} 26. f4 {[%emt 0:01:52]} Qxf4 {[%emt 0:03:14]} 27. Qc3 {[%emt 0:08:05]} Qxd6 {[%emt 0:01:22]} 28. Qh8+ {[%emt 0:01:02]} Ke7 {[%emt 0:00:43]} 29. Bxg6 {[%emt 0:02:05]} fxg6 {[%emt 0:01:06]} 30. Qh7+ {[%emt 0:02:31]} Ke8 {[%emt 0:01:16]} 31. Qxg6+ {[%emt 0:01:03]} Kd7 {[%emt 0:00:52]} 32. h4 {[%emt 0:01:12]} Qd4+ {[%emt 0:00:56]} 33. Kf1 {[%emt 0:01:04]} Qxh4 {[%emt 0:00:55]} 0-1

[Event "NOR-ch Women 2019"]
[Site "Bekkestua"]
[Date "2019.03.16"]
[Round "2.8"]
[White "Sathren, Linda Fagerli"]
[Black "Lazareva, Emilie"]
[Result "0-1"]
[ECO "C62"]
[WhiteElo "1219"]
[BlackElo "1354"]
[Annotator "NA RC"]
[PlyCount "84"]
[EventDate "2019.03.15"]
[EventType "swiss"]
[EventCountry "NOR"]
[SourceTitle "playchess.com"]
[Source "ChessBase"]
[SourceQuality "1"]
[TimeControl "5400+30"]

1. e4 {[%emt 0:00:37]} e5 {[%emt 0:00:34]} 2. Nf3 {[%emt 0:00:24]} Nc6 {[%emt 0:00:13]} 3. Nc3 {[%emt 0:01:23]} Nf6 {[%emt 0:01:03]} 4. d4 {[%emt 0:00:40]} exd4 {[%emt 0:01:11]} 5. Nxd4 {[%emt 0:00:39]} d6 {[%emt 0:01:49]} 6. Nxc6 {[%emt 0:00:44]} bxc6 {[%emt 0:01:00]} 7. Bc4 {[%emt 0:01:02]} Be6 {[%emt 0:01:32]} 8. Bb3 {[%emt 0:03:16]} Be7 {[%emt 0:01:38]} 9. O-O {[%emt 0:02:10]} O-O {[%emt 0:01:11]} 10. Be3 {[%emt 0:00:53]} Qd7 {[%emt 0:06:37]} 11. Bxe6 {[%emt 0:01:51]} fxe6 {[%emt 0:02:02]} 12. e5 {[%emt 0:06:03]} Nd5 {[%emt 0:01:51]} 13. Nxd5 {[%emt 0:01:17]} cxd5 {[%emt 0:00:50]} 14. Bd4 {[%emt 0:01:40]} c5 {[%emt 0:02:14]} 15. exd6 {[%emt 0:01:16]} Bxd6 {[%emt 0:02:07]} 16. Bc3 {[%emt 0:04:16]} Qe7 {[%emt 0:02:31]} 17. g3 {[%emt 0:03:35]} Qg5 {[%emt 0:02:49]} 18. Qe2 {[%emt 0:03:41]} Qg6 {[%emt 0:05:30]} 19. f4 {[%emt 0:01:52]} Bxf4 {[%emt 0:01:46]} 20. Rf3 {[%emt 0:01:16]} Qg4 {[%emt 0:05:35]} 21. Qg2 {[%emt 0:02:18]} Bd6 {[%emt 0:03:14]} 22. Raf1 {[%emt 0:02:43]} c4 {[%emt 0:04:15]} 23. a3 {[%emt 0:03:13]} Bc5+ {[%emt 0:01:33]} 24. Kh1 {[%emt 0:01:05]} Rad8 {[%emt 0:08:34]} 25. Bb4 {[%emt 0:01:08]} Rxf3 {[%emt 0:05:50]} 26. Rxf3 {[%emt 0:02:15]} Bb6 {[%emt 0:02:25]} 27. Qf1 {[%emt 0:01:18]} h6 {[%emt 0:03:37]} 28. Rf7 {[%emt 0:03:02]} Qe4+ {[%emt 0:01:44]} 29. Rf3 {[%emt 0:01:26]} a5 {[%emt 0:01:40]} 30. Be7 {[%emt 0:00:58]} Rd7 {[%emt 0:01:28]} 31. Bh4 {[%emt 0:02:50]} Rf7 {[%emt 0:00:49]} 32. Kg2 {[%emt 0:01:03]} Rxf3 {[%emt 0:01:59]} 33. Qxf3 {[%emt 0:01:35]} Qxf3+ {[%emt 0:00:42]} 34. Kxf3 {[%emt 0:00:40]} g5 {[%emt 0:00:38]} 35. Bxg5 {[%emt 0:00:41]} hxg5 {[%emt 0:00:49]} 36. c3 {[%emt 0:00:55]} Kf7 {[%emt 0:01:31]} 37. g4 {[%emt 0:00:42]} Kf6 {[%emt 0:01:01]} 38. Ke2 {[%emt 0:01:11]} e5 {[%emt 0:01:03]} 39. h3 {[%emt 0:00:26]} e4 {[%emt 0:00:42]} 40. a4 {[%emt 0:02:01]} Ke5 {[%emt 0:00:32]} 41. Kd2 {[%emt 0:00:53]} Kf4 {[%emt 0:00:58]} 42. Ke2 {[%emt 0:01:16]} Kg3 {[%emt 0:00:46]} 0-1

[Event "NOR-ch Women 2019"]
[Site "Bekkestua"]
[Date "2019.03.16"]
[Round "3.1"]
[White "Larre, Linnea"]
[Black "Ayzenberg, Alena"]
[Result "0-1"]
[ECO "A53"]
[WhiteElo "1599"]
[BlackElo "1908"]
[Annotator "NA"]
[PlyCount "96"]
[EventDate "2019.03.15"]
[EventType "swiss"]
[EventCountry "NOR"]
[SourceTitle "playchess.com"]
[Source "ChessBase"]
[SourceQuality "1"]
[TimeControl "5400+30"]

1. c4 {[%emt 0:00:32]} Nf6 {[%emt 0:00:39]} 2. g3 {[%emt 0:00:39]} e5 {[%emt 0:02:31]} 3. Bg2 {[%emt 0:00:59]} c6 {[%emt 0:01:06]} 4. d4 {[%emt 0:01:48]} d6 {[%emt 0:02:45]} 5. dxe5 {[%emt 0:00:45]} dxe5 {[%emt 0:00:42]} 6. Qxd8+ {[%emt 0:01:59]} Kxd8 {[%emt 0:00:35]} 7. Nf3 {[%emt 0:02:33]} Bd6 {[%emt 0:04:25]} 8. Nc3 {[%emt 0:03:48] A53: Old Indian Defence without Nf3} Be6 {[%emt 0:05:44]} 9. b3 {[%emt 0:02:30]} h6 {[%emt 0:02:18]} 10. O-O {[%emt 0:03:08]} Ke7 {[%emt 0:03:50]} 11. Rd1 {[%emt 0:08:20]} Nbd7 {[%emt 0:15:10]} 12. Bb2 {[%emt 0:04:55]} Rhd8 {[%emt 0:03:06]} 13. Rd2 $146 {[%emt 0:04:07]} ({Predecessor:} 13. Nd2 Ke8 14. Nce4 Be7 15. Nxf6+ gxf6 {½-½ (42) Hofer,F (2079)-Urban,R (2068) Seefeld 2004}) 13... Bb4 {[%emt 0:02:47]} 14. Rdd1 {[%emt 0:08:44]} Bf5 {[%emt 0:10:48]} 15. a3 {[%emt 0:02:06]} Bxc3 {[%emt 0:06:27]} 16. Bxc3 {[%emt 0:00:40]} Bc2 {[%emt 0:02:41]} (16... Ne4 $14 17. Bb4+ (17. Bxe5 Nxe5 18. Nxe5 Nc5 $11) 17... c5) 17. Rdc1 {[%emt 0:02:15]} Bxb3 {[%emt 0:02:59]} 18. Bxe5 {[%emt 0:05:01]} Ba4 {[%emt 0:03:03]} 19. Rab1 {[%emt 0:02:56]} Nc5 {[%emt 0:01:42]} 20. h3 {[%emt 0:13:55]} g6 {[%emt 0:01:34]} 21. Bc3 {[%emt 0:02:30]} Nfe4 {[%emt 0:03:18]} 22. Bb4 {[%emt 0:00:57]} a5 {[%emt 0:00:50]} 23. Be1 {[%emt 0:01:36]} f6 {[%emt 0:05:05]} 24. e3 {[%emt 0:01:25]} ({Better is} 24. Nh4 $14) 24... Rd7 {[%emt 0:01:34]} 25. Nd4 {[%emt 0:01:26]} f5 {[%emt 0:01:16]} 26. Rb6 {[%emt 0:01:17]} Nd3 {[%emt 0:01:36]} 27. Rcb1 {[%emt 0:00:54]} Nxe1 {[%emt 0:00:44]} 28. Bxe4 {[%emt 0:03:06]} fxe4 {[%emt 0:00:47]} 29. Rxe1 {[%emt 0:00:44]} Rad8 {[%emt 0:03:44]} 30. Kg2 {[%emt 0:02:10]} Rf8 {[%emt 0:02:25]} ({Black should play} 30... c5 $14 31. Ne6 Rc8) 31. Reb1 {[%emt 0:01:33]} c5 {[%emt 0:01:29]} 32. Ne2 {[%emt 0:00:42]} Bc6 {[%emt 0:00:56]} 33. Nf4 {[%emt 0:02:56]} Rf6 {[%emt 0:00:59]} 34. R6b2 {[%emt 0:06:17]} Rfd6 {[%emt 0:01:48]} 35. Rb6 {[%emt 0:01:14]} (35. h4 $11) 35... g5 {[%emt 0:01:43]} 36. Ne2 {[%emt 0:03:09]} Rd3 {[%emt 0:01:14]} 37. R6b3 {[%emt 0:00:56]} Rxb3 {[%emt 0:00:43]} 38. Rxb3 {[%emt 0:00:35]} Rd2 {[%emt 0:01:00]} 39. Kf1 {[%emt 0:02:28]} Rd1+ {[%emt 0:00:41]} 40. Kg2 {[%emt 0:00:37]} Rd3 {[%emt 0:01:15]} 41. Nc1 {[%emt 0:00:54]} Rd1 {[%emt 0:01:49]} 42. Ne2 {[%emt 0:00:55]} a4 {[%emt 0:00:00]} 43. Rc3 {[%emt 0:00:00]} Kd6 {[%emt 0:00:00]} 44. g4 {[%emt 0:00:00]} Rd3 {[%emt 0:00:00]} 45. Kf1 {[%emt 0:00:00]} b5 {[%emt 0:00:00]} 46. cxb5 {[%emt 0:00:00]} Bxb5 {[%emt 0:00:00]} 47. Ke1 {[%emt 0:00:00]} Kd5 {[%emt 0:00:00]} 48. Kf1 {[%emt 0:00:00]} (48. Rxd3+ $11 exd3 49. Nc3+ Kc4 50. Kd2) 48... Rd1+ {[%emt 0:00:00]} 0-1